fUST/lending_fUST_20241018
["ID","MTS","AMOUNT","RATE_DAILY","PERIOD"]
[340396698,1729182641585,-500.0,0.00014439,2]
[340396699,1729182641595,-395.47331288,0.00014439,2]
[340396700,1729182641604,-500.0,0.00014439,2]
[340396701,1729182641615,-167.698097,0.0001444,2]
[340396702,1729182641625,-167.698097,0.0001444,2]
[340396703,1729182641634,-167.698097,0.0001444,2]
[340396704,1729182641644,-167.698097,0.0001444,2]
[340396705,1729182641654,-175.503094,0.0001444,2]
[340396706,1729182641663,-175.503094,0.0001444,2]
[340396707,1729182641673,-175.503094,0.0001444,2]
[340396708,1729182641683,-175.503094,0.0001444,2]
[340396709,1729182641693,-156.407132,0.0001444,2]
[340396710,1729182641703,-156.407132,0.0001444,2]
[340396711,1729182641712,-156.407132,0.0001444,2]
[340396712,1729182641723,-156.407132,0.0001444,2]
[340396713,1729182641733,-88803.8456817,0.0001444,2]
[340396714,1729182641743,-453.3642731,0.0001444,2]
[340396715,1729182642330,-12304.81153383,0.0001444,2]
[340396716,1729182642343,-5440.4253944,0.0001444,2]
[340396720,1729182642738,2155.0000002,0.00013366,2]
[340396731,1729182643160,-7172.75907927,0.0001444,2]
[340396740,1729182817988,23669.15681822,0.00014,2]
[340396741,1729182875923,545.024765,0.00013699,2]
[340396742,1729182879338,2038.7278736,0.00013775,2]
[340396743,1729182897774,-158.97147261,0.00014173,2]
[340396744,1729182897797,-1350.62883,0.00014173,2]
[340396745,1729182897819,-300.0,0.00014254,2]
[340396746,1729182897841,-300.0,0.00014254,2]
[340396747,1729182897864,-35890.36281922,0.00014255,2]
[340396748,1729182897887,-5728.22969567,0.00014273,2]
[340396749,1729182897909,-2038.7278736,0.00014275,2]
[340396750,1729182897932,-1000.0,0.0001434,2]
[340396751,1729182897955,-153.69155306,0.00014344,2]
[340396752,1729182897979,-500.0,0.00014344,2]
[340396753,1729182898003,-222.32986331,0.00014344,2]
[340396754,1729182898029,-500.0,0.00014344,2]
[340396755,1729182898062,-500.0,0.00014344,2]
[340396756,1729182898086,-500.0,0.00014344,2]
[340396757,1729182898112,-500.0,0.00014344,2]
[340396758,1729182898136,-451.21801241,0.00014344,2]
[340396759,1729182898161,-16802.8719113,0.00014345,2]
[340396760,1729182898186,-126301.98075,0.00014345,2]
[340396761,1729182898211,-216399.179931,0.00014345,2]
[340396762,1729182898235,-459.09693999,0.00014349,2]
[340396763,1729182898258,-187.60697335,0.00014354,2]
[340396764,1729182898281,-332.18518626,0.00014354,2]
[340396765,1729182898305,-500.0,0.00014354,2]
[340396766,1729182898329,-392.32878167,0.00014354,2]
[340396767,1729182898350,-461.03996792,0.00014354,2]
[340396768,1729182898374,-327.07181736,0.00014354,2]
[340396769,1729182898397,-500.0,0.00014354,2]
[340396770,1729182898422,-36933.43345844,0.00014355,2]
[340396771,1729182898445,-273999.04416283,0.00014355,2]
[340396772,1729182912837,171.54,0.00010959,2]
[340396773,1729182914817,215.425245,0.00013699,2]
[340396774,1729182925904,857.7,0.00010959,2]
[340396775,1729183158441,8000.0,0.00014,30]
[340396777,1729183193482,203.265866,0.00013376,2]
[340396778,1729183193728,203.265866,0.00013413,2]
[340396779,1729183194277,203.265866,0.00013449,2]
[340396780,1729183194371,203.265866,0.00013486,2]
[340396781,1729183194578,203.265866,0.00013523,2]
[340396782,1729183194798,203.265866,0.00013559,2]
[340396783,1729183195028,203.265866,0.00013596,2]
[340396784,1729183195295,203.265866,0.00013633,2]
[340396785,1729183195541,203.265866,0.00013669,2]
[340396786,1729183195793,203.265866,0.00013706,2]
[340396787,1729183195996,203.265866,0.00013743,2]
[340396788,1729183196448,203.265866,0.00013779,2]
[340396789,1729183196714,203.265866,0.00013816,2]
[340396790,1729183196975,203.265866,0.00013853,2]
[340396791,1729183197271,203.265866,0.00013889,2]
[340396792,1729183197515,203.265866,0.00013926,2]
[340396793,1729183197748,203.265866,0.00013963,2]
[340396794,1729183197980,203.265866,0.00014,2]
[340396795,1729183218363,10140.2754347,0.00013699,2]
[340396797,1729183269876,24900.0,0.0001327,2]
[340396801,1729183349470,250.0,0.00013699,2]
[340396804,1729183426415,671.3,0.00013258,2]
[340396805,1729183472730,17153.84,0.00014,2]
[340396806,1729183490393,489.95092,0.00013699,2]
[340396812,1729183780414,1223.2367242,0.00013775,2]
[340396815,1729183803999,23235.4749921,0.00013256,2]
[340396855,1729183835167,-203.265866,0.00014036,2]
[340396857,1729183835178,-158.785806,0.00014073,2]
[340396893,1729183838912,-44.48006,0.00014073,2]
[340396894,1729183838922,-5415.79753904,0.00014074,2]
[340396895,1729183838932,-964.46911468,0.00014242,2]
[340396896,1729183838975,-251.09683232,0.00014242,2]
[340396897,1729183838984,-634.14973909,0.00014244,2]
[340396906,1729183840427,-158.90604318,0.00014244,2]
[340396907,1729183840438,-793.05578224,0.00014247,2]
[340396908,1729183840448,-300.0,0.00014248,2]
[340396909,1729183840458,-300.0,0.00014249,2]
[340396910,1729183840468,-793.05578224,0.0001425,2]
[340396911,1729183840479,-793.05578224,0.00014252,2]
[340396912,1729183840488,-793.05578224,0.00014255,2]
[340396913,1729183840500,-1223.2367242,0.00014275,2]
[340396914,1729183840510,-1000.0,0.0001433,2]
[340396915,1729183840519,-1866.94946417,0.00014335,2]
[340396916,1729183840529,-55670.128988,0.00014335,2]
[340396917,1729183840539,-500.0,0.00014344,2]
[340396918,1729183840549,-55670.128988,0.00014345,2]
[340396919,1729183840559,-836.54,0.00014354,2]
[340396920,1729183840569,-137450.87423025,0.00014355,2]
[340396921,1729183840855,-500.0,0.00014373,2]
[340396922,1729183840865,-200.69148877,0.00014373,2]
[340396923,1729183840875,-150.0,0.00014374,2]
[340396924,1729183840885,-489.95092,0.00014384,2]
[340396925,1729183840896,-150.112233,0.000144,2]
[340396926,1729183840906,-1000.0,0.000144,2]
[340396927,1729183840916,-18556.7096627,0.000144,2]
[340396928,1729183840925,-327.91311249,0.00014409,2]
[340396929,1729183840935,-18556.7096627,0.0001441,2]
[340396930,1729183840946,-236.042043,0.0001443,2]
[340396931,1729183840957,-236.042043,0.0001443,2]
[340396932,1729183840968,-74226.8386506,0.0001444,2]
[340396933,1729183840978,-345.698,0.00014443,2]
[340396934,1729183840988,-151.0,0.0001445,2]
[340396935,1729183840998,-151.0,0.0001445,2]
[340396936,1729183841008,-151.0,0.0001445,2]
[340396937,1729183841018,-179.56863,0.0001445,2]
[340396938,1729183841027,-179.56863,0.0001445,2]
[340396939,1729183841038,-151.0,0.0001445,2]
[340396940,1729183841047,-151.0,0.0001445,2]
[340396941,1729183841058,-211.266832,0.0001445,2]
[340396942,1729183841067,-211.266832,0.0001445,2]
[340396943,1729183841078,-211.266832,0.0001445,2]
[340396944,1729183841088,-211.266832,0.0001445,2]
[340396945,1729183841099,-151.0,0.0001445,2]
[340396946,1729183841108,-277.560049,0.0001445,2]
[340396947,1729183841120,-276.581434,0.0001445,2]
[340396948,1729183841131,-276.581434,0.0001445,2]
[340396949,1729183841140,-276.581434,0.0001445,2]
[340396950,1729183841150,-276.581434,0.0001445,2]
[340396951,1729183841160,-151.0,0.0001445,2]
[340396952,1729183841169,-151.0,0.0001445,2]
[340396953,1729183841179,-298.493785,0.0001445,2]
[340396954,1729183841189,-222.211131,0.0001445,2]
[340396955,1729183841198,-151.0,0.0001445,2]
[340396956,1729183841207,-151.0,0.0001445,2]
[340396957,1729183841217,-151.636463,0.0001445,2]
[340396958,1729183841227,-151.0,0.0001445,2]
[340396959,1729183841238,-151.0,0.0001445,2]
[340396960,1729183841248,-151.0,0.0001445,2]
[340396961,1729183841258,-151.0,0.0001445,2]
[340396962,1729183841267,-236.042043,0.0001445,2]
[340396963,1729183841277,-236.042043,0.0001445,2]
[340396964,1729183841287,-151.0,0.0001445,2]
[340396965,1729183841297,-151.0,0.0001445,2]
[340396966,1729183841307,-151.0,0.0001445,2]
[340396967,1729183841316,-151.0,0.0001445,2]
[340396968,1729183841326,-151.0,0.0001445,2]
[340396969,1729183841336,-151.0,0.0001445,2]
[340396970,1729183841345,-151.0,0.0001445,2]
[340396971,1729183841356,-220.740095,0.0001445,2]
[340396972,1729183841365,-151.0,0.0001445,2]
[340396973,1729183841375,-151.0,0.0001445,2]
[340396974,1729183841395,-151.0,0.0001445,2]
[340396975,1729183841406,-151.0,0.0001445,2]
[340396976,1729183841416,-477.812165,0.0001445,2]
[340396977,1729183841427,-477.812165,0.0001445,2]
[340396978,1729183841437,-477.812165,0.0001445,2]
[340396979,1729183841447,-477.812165,0.0001445,2]
[340396980,1729183841458,-298.0,0.0001445,2]
[340396981,1729183841468,-615.194214,0.0001445,2]
[340396982,1729183841478,-615.194214,0.0001445,2]
[340396983,1729183841488,-615.194214,0.0001445,2]
[340396984,1729183841499,-615.194214,0.0001445,2]
[340396985,1729183841511,-8589.659999,0.0001445,2]
[340396986,1729183841522,-8589.659999,0.0001445,2]
[340396987,1729183841532,-241.541605,0.0001445,2]
[340396988,1729183841542,-241.541605,0.0001445,2]
[340396989,1729183841553,-8589.659999,0.0001445,2]
[340396990,1729183841563,-8589.659999,0.0001445,2]
[340396991,1729183841573,-241.541605,0.0001445,2]
[340396992,1729183841587,-241.541605,0.0001445,2]
[340396993,1729183841598,-784.614456,0.0001445,2]
[340396994,1729183841608,-399.264641,0.0001445,2]
[340396995,1729183841618,-399.264641,0.0001445,2]
[340396996,1729183841627,-784.614456,0.0001445,2]
[340396997,1729183841638,-399.264641,0.0001445,2]
[340396998,1729183841648,-151.0,0.0001445,2]
[340396999,1729183841658,-151.0,0.0001445,2]
[340397000,1729183841668,-399.264641,0.0001445,2]
[340397001,1729183841679,-1708.164414,0.0001445,2]
[340397002,1729183841690,-151.0,0.0001445,2]
[340397003,1729183841702,-151.0,0.0001445,2]
[340397004,1729183841712,-1708.164414,0.0001445,2]
[340397005,1729183841722,-153.879976,0.0001445,2]
[340397006,1729183841733,-857.821292,0.0001445,2]
[340397007,1729183841743,-857.821292,0.0001445,2]
[340397008,1729183841753,-2328.875722,0.0001445,2]
[340397009,1729183841764,-857.821292,0.0001445,2]
[340397010,1729183841774,-857.821292,0.0001445,2]
[340397011,1729183841784,-2328.875722,0.0001445,2]
[340397012,1729183841794,-873.291686,0.0001445,2]
[340397013,1729183841804,-1431.487494,0.0001445,2]
[340397014,1729183841814,-873.291686,0.0001445,2]
[340397015,1729183841824,-1431.487494,0.0001445,2]
[340397016,1729183841835,-1055.925198,0.0001445,2]
[340397017,1729183841846,-1055.925198,0.0001445,2]
[340397018,1729183841857,-261.650755,0.0001445,2]
[340397019,1729183841868,-151.0,0.0001445,2]
[340397020,1729183841878,-261.650755,0.0001445,2]
[340397021,1729183841888,-151.0,0.0001445,2]
[340397022,1729183841898,-815.343716,0.0001445,2]
[340397023,1729183841907,-815.343716,0.0001445,2]
[340397024,1729183841918,-7212.223302,0.0001445,2]
[340397025,1729183841928,-7212.223302,0.0001445,2]
[340397026,1729183841939,-7212.223302,0.0001445,2]
[340397027,1729183841949,-7212.223302,0.0001445,2]
[340397029,1729183841959,-151.0,0.0001445,2]
[340397030,1729183841970,-151.0,0.0001445,2]
[340397031,1729183841980,-151.0,0.0001445,2]
[340397032,1729183841989,-151.0,0.0001445,2]
[340397033,1729183841999,-151.0,0.0001445,2]
[340397034,1729183842009,-1362.984131,0.0001445,2]
[340397035,1729183842019,-158.32093,0.0001445,2]
[340397036,1729183842030,-931.120778,0.0001445,2]
[340397037,1729183842039,-1362.984131,0.0001445,2]
[340397038,1729183842049,-158.32093,0.0001445,2]
[340397039,1729183842059,-577.169305,0.0001445,2]
[340397040,1729183842069,-931.120778,0.0001445,2]
[340397041,1729183842079,-577.169305,0.0001445,2]
[340397042,1729183842089,-686.027283,0.0001445,2]
[340397043,1729183842100,-686.027283,0.0001445,2]
[340397044,1729183842110,-3972.692835,0.0001445,2]
[340397045,1729183842120,-4116.742481,0.0001445,2]
[340397046,1729183842130,-637.712232,0.0001445,2]
[340397047,1729183842140,-4116.742481,0.0001445,2]
[340397048,1729183842150,-3972.692835,0.0001445,2]
[340397049,1729183842160,-637.712232,0.0001445,2]
[340397050,1729183842170,-151.0,0.0001445,2]
[340397051,1729183842180,-228.287624,0.0001445,2]
[340397052,1729183842190,-255.766314,0.0001445,2]
[340397053,1729183842200,-255.766314,0.0001445,2]
[340397054,1729183842210,-152.045827,0.0001445,2]
[340397055,1729183842219,-1036.583504,0.0001445,2]
[340397056,1729183842230,-1036.583504,0.0001445,2]
[340397057,1729183842240,-1587.800643,0.0001445,2]
[340397058,1729183842249,-1587.800643,0.0001445,2]
[340397059,1729183842259,-934.123171,0.0001445,2]
[340397060,1729183842269,-934.123171,0.0001445,2]
[340397061,1729183842279,-5626.014244,0.0001445,2]
[340397062,1729183842289,-5626.014244,0.0001445,2]
[340397063,1729183842300,-185.142949,0.0001445,2]
[340397064,1729183842310,-185.142949,0.0001445,2]
[340397065,1729183842319,-151.0,0.00014452,2]
[340397066,1729183842329,-151.0,0.00014452,2]
[340397067,1729183842339,-179.56863,0.00014452,2]
[340397068,1729183842348,-179.56863,0.00014452,2]
[340397069,1729183842358,-151.0,0.00014452,2]
[340397070,1729183842367,-211.266832,0.00014452,2]
[340397071,1729183842377,-211.266832,0.00014452,2]
[340397072,1729183842387,-276.581434,0.00014452,2]
[340397073,1729183842396,-276.581434,0.00014452,2]
[340397074,1729183842407,-151.0,0.00014452,2]
[340397075,1729183842416,-151.0,0.00014452,2]
[340397076,1729183842426,-200.454524,0.00014452,2]
[340397077,1729183842440,-236.042043,0.00014452,2]
[340397078,1729183842450,-200.454524,0.00014452,2]
[340397079,1729183842459,-236.042043,0.00014452,2]
[340397080,1729183842469,-172.871581,0.00014452,2]
[340397081,1729183842480,-172.871581,0.00014452,2]
[340397082,1729183842490,-784.614456,0.00014452,2]
[340397083,1729183842500,-784.614456,0.00014452,2]
[340397084,1729183842510,-1708.164414,0.00014452,2]
[340397085,1729183842521,-1708.164414,0.00014452,2]
[340397086,1729183842531,-2328.875722,0.00014452,2]
[340397087,1729183842540,-2328.875722,0.00014452,2]
[340397088,1729183842549,-873.291686,0.00014452,2]
[340397089,1729183842559,-1431.487494,0.00014452,2]
[340397090,1729183842569,-873.291686,0.00014452,2]
[340397091,1729183842579,-1431.487494,0.00014452,2]
[340397092,1729183842588,-1055.925198,0.00014452,2]
[340397093,1729183842598,-1055.925198,0.00014452,2]
[340397094,1729183842608,-815.343716,0.00014452,2]
[340397095,1729183842618,-815.343716,0.00014452,2]
[340397096,1729183842628,-194.73133744,0.00014455,2]
[340397097,1729183842637,-151.0,0.00014459,2]
[340397098,1729183842648,-223.698159,0.00014459,2]
[340397099,1729183842658,-179.56863,0.00014459,2]
[340397100,1729183842668,-179.56863,0.00014459,2]
[340397101,1729183842678,-151.0,0.00014459,2]
[340397102,1729183842687,-151.0,0.00014459,2]
[340397103,1729183842697,-500.0,0.00014459,2]
[340397104,1729183842707,-290.89403493,0.00014459,2]
[340397105,1729183842717,-446.8170168,0.00014459,2]
[340397106,1729183842727,-604.9891104,0.00014459,2]
[340397108,1729183842736,-322.67777932,0.00014459,2]
[340397109,1729183842746,-151.0,0.0001446,2]
[340397110,1729183842756,-151.0,0.0001446,2]
[340397111,1729183842766,-151.0,0.0001446,2]
[340397112,1729183842776,-151.0,0.0001446,2]
[340397113,1729183842786,-151.0,0.0001446,2]
[340397114,1729183842796,-151.0,0.0001446,2]
[340397115,1729183842805,-228.765814,0.0001446,2]
[340397116,1729183842815,-179.56863,0.0001446,2]
[340397117,1729183842826,-179.56863,0.0001446,2]
[340397118,1729183842836,-179.56863,0.0001446,2]
[340397120,1729183842846,-179.56863,0.0001446,2]
[340397121,1729183842856,-266.608381,0.0001446,2]
[340397123,1729183842866,-211.266832,0.0001446,2]
[340397124,1729183842890,-211.266832,0.0001446,2]
[340397125,1729183842900,-211.266832,0.0001446,2]
[340397127,1729183842911,-211.266832,0.0001446,2]
[340397128,1729183842920,-211.266832,0.0001446,2]
[340397129,1729183842932,-211.266832,0.0001446,2]
[340397130,1729183842942,-276.581434,0.0001446,2]
[340397131,1729183842952,-276.581434,0.0001446,2]
[340397132,1729183842962,-276.581434,0.0001446,2]
[340397133,1729183842972,-276.581434,0.0001446,2]
[340397134,1729183842982,-276.581434,0.0001446,2]
[340397135,1729183842992,-276.581434,0.0001446,2]
[340397136,1729183843002,-151.0,0.0001446,2]
[340397137,1729183843011,-151.0,0.0001446,2]
[340397138,1729183843021,-151.0,0.0001446,2]
[340397139,1729183843031,-151.0,0.0001446,2]
[340397140,1729183843041,-151.0,0.0001446,2]
[340397141,1729183843051,-151.0,0.0001446,2]
[340397142,1729183843061,-151.0,0.0001446,2]
[340397143,1729183843071,-151.0,0.0001446,2]
[340397144,1729183843081,-151.0,0.0001446,2]
[340397145,1729183843092,-151.0,0.0001446,2]
[340397146,1729183843102,-151.0,0.0001446,2]
[340397147,1729183843112,-151.0,0.0001446,2]
[340397148,1729183843122,-151.0,0.0001446,2]
[340397149,1729183843132,-151.0,0.0001446,2]
[340397150,1729183843142,-151.0,0.0001446,2]
[340397151,1729183843152,-151.0,0.0001446,2]
[340397152,1729183843163,-151.0,0.0001446,2]
[340397153,1729183843173,-151.0,0.0001446,2]
[340397154,1729183843183,-151.0,0.0001446,2]
[340397155,1729183843193,-179.751542,0.0001446,2]
[340397156,1729183843203,-366.768898,0.0001446,2]
[340397157,1729183843212,-366.768898,0.0001446,2]
[340397159,1729183843223,-366.768898,0.0001446,2]
[340397161,1729183843233,-366.768898,0.0001446,2]
[340397163,1729183843244,-366.768898,0.0001446,2]
[340397165,1729183843253,-366.768898,0.0001446,2]
[340397166,1729183843263,-151.0,0.0001446,2]
[340397167,1729183843273,-151.0,0.0001446,2]
[340397168,1729183843283,-151.0,0.0001446,2]
[340397169,1729183843293,-151.0,0.0001446,2]
[340397170,1729183843304,-151.0,0.0001446,2]
[340397171,1729183843313,-151.0,0.0001446,2]
[340397172,1729183843323,-246.148067,0.0001446,2]
[340397173,1729183843333,-246.148067,0.0001446,2]
[340397174,1729183843342,-246.148067,0.0001446,2]
[340397175,1729183843352,-246.148067,0.0001446,2]
[340397176,1729183843361,-246.148067,0.0001446,2]
[340397177,1729183843372,-246.148067,0.0001446,2]
[340397178,1729183843381,-151.0,0.0001446,2]
[340397179,1729183843391,-151.0,0.0001446,2]
[340397180,1729183843400,-153.059091,0.0001446,2]
[340397181,1729183843409,-151.0,0.0001446,2]
[340397182,1729183843419,-151.0,0.0001446,2]
[340397183,1729183843428,-151.0,0.0001446,2]
[340397184,1729183843438,-151.0,0.0001446,2]
[340397185,1729183843447,-151.0,0.0001446,2]
[340397186,1729183843457,-151.0,0.0001446,2]
[340397187,1729183843467,-151.0,0.0001446,2]
[340397188,1729183843477,-151.0,0.0001446,2]
[340397189,1729183843486,-151.0,0.0001446,2]
[340397191,1729183843496,-151.0,0.0001446,2]
[340397192,1729183843509,-200.454524,0.0001446,2]
[340397193,1729183843519,-200.454524,0.0001446,2]
[340397195,1729183843528,-179.541392,0.0001446,2]
[340397196,1729183843538,-179.541392,0.0001446,2]
[340397197,1729183843549,-236.042043,0.0001446,2]
[340397198,1729183843558,-179.541392,0.0001446,2]
[340397199,1729183843568,-236.042043,0.0001446,2]
[340397200,1729183843579,-236.042043,0.0001446,2]
[340397201,1729183843588,-151.0,0.0001446,2]
[340397202,1729183843598,-200.454524,0.0001446,2]
[340397203,1729183843607,-151.0,0.0001446,2]
[340397204,1729183843617,-200.454524,0.0001446,2]
[340397205,1729183843627,-151.0,0.0001446,2]
[340397206,1729183843638,-151.0,0.0001446,2]
[340397207,1729183843648,-179.541392,0.0001446,2]
[340397208,1729183843657,-151.0,0.0001446,2]
[340397209,1729183843667,-179.541392,0.0001446,2]
[340397210,1729183843678,-179.541392,0.0001446,2]
[340397211,1729183843688,-236.042043,0.0001446,2]
[340397212,1729183843697,-236.042043,0.0001446,2]
[340397213,1729183843707,-236.042043,0.0001446,2]
[340397214,1729183843718,-172.871581,0.0001446,2]
[340397215,1729183843728,-172.871581,0.0001446,2]
[340397216,1729183843738,-172.871581,0.0001446,2]
[340397217,1729183843748,-172.871581,0.0001446,2]
[340397218,1729183843758,-230.870894,0.0001446,2]
[340397219,1729183843767,-230.870894,0.0001446,2]
[340397220,1729183843778,-230.870894,0.0001446,2]
[340397221,1729183843788,-230.870894,0.0001446,2]
[340397222,1729183843798,-158.736551,0.0001446,2]
[340397223,1729183843807,-158.736551,0.0001446,2]
[340397224,1729183843817,-158.736551,0.0001446,2]
[340397225,1729183843828,-158.736551,0.0001446,2]
[340397226,1729183843837,-151.0,0.0001446,2]
[340397227,1729183843848,-151.0,0.0001446,2]
[340397228,1729183843858,-151.0,0.0001446,2]
[340397229,1729183843867,-151.0,0.0001446,2]
[340397230,1729183843878,-158.915838,0.0001446,2]
[340397231,1729183843887,-158.915838,0.0001446,2]
[340397232,1729183843897,-158.915838,0.0001446,2]
[340397233,1729183843907,-158.915838,0.0001446,2]
[340397234,1729183843917,-315.895349,0.0001446,2]
[340397235,1729183843926,-315.895349,0.0001446,2]
[340397236,1729183843937,-315.895349,0.0001446,2]
[340397237,1729183843947,-151.0,0.0001446,2]
[340397238,1729183843957,-151.0,0.0001446,2]
[340397239,1729183843968,-151.0,0.0001446,2]
[340397240,1729183843978,-151.0,0.0001446,2]
[340397241,1729183843988,-151.0,0.0001446,2]
[340397242,1729183843998,-151.0,0.0001446,2]
[340397243,1729183844009,-151.0,0.0001446,2]
[340397244,1729183844019,-151.0,0.0001446,2]
[340397245,1729183844028,-151.0,0.0001446,2]
[340397246,1729183844039,-151.0,0.0001446,2]
[340397247,1729183844049,-151.0,0.0001446,2]
[340397248,1729183844059,-151.0,0.0001446,2]
[340397249,1729183844069,-151.0,0.0001446,2]
[340397250,1729183844078,-151.0,0.0001446,2]
[340397251,1729183844089,-151.0,0.0001446,2]
[340397252,1729183844100,-151.0,0.0001446,2]
[340397253,1729183844110,-151.0,0.0001446,2]
[340397254,1729183844121,-151.0,0.0001446,2]
[340397255,1729183844131,-477.812165,0.0001446,2]
[340397256,1729183844140,-477.812165,0.0001446,2]
[340397257,1729183844151,-477.812165,0.0001446,2]
[340397258,1729183844160,-477.812165,0.0001446,2]
[340397259,1729183844170,-477.812165,0.0001446,2]
[340397260,1729183844180,-477.812165,0.0001446,2]
[340397261,1729183844190,-615.194214,0.0001446,2]
[340397262,1729183844199,-615.194214,0.0001446,2]
[340397263,1729183844209,-615.194214,0.0001446,2]
[340397264,1729183844219,-615.194214,0.0001446,2]
[340397265,1729183844228,-615.194214,0.0001446,2]
[340397266,1729183844238,-615.194214,0.0001446,2]
[340397267,1729183844248,-8589.659999,0.0001446,2]
[340397268,1729183844258,-8589.659999,0.0001446,2]
[340397269,1729183844268,-241.541605,0.0001446,2]
[340397270,1729183844278,-241.541605,0.0001446,2]
[340397271,1729183844288,-241.541605,0.0001446,2]
[340397272,1729183844298,-8589.659999,0.0001446,2]
[340397273,1729183844307,-8589.659999,0.0001446,2]
[340397274,1729183844316,-241.541605,0.0001446,2]
[340397275,1729183844326,-241.541605,0.0001446,2]
[340397276,1729183844336,-241.541605,0.0001446,2]
[340397277,1729183844346,-784.614456,0.0001446,2]
[340397278,1729183844356,-784.614456,0.0001446,2]
[340397279,1729183844366,-399.264641,0.0001446,2]
[340397280,1729183844377,-399.264641,0.0001446,2]
[340397281,1729183844388,-399.264641,0.0001446,2]
[340397282,1729183844397,-784.614456,0.0001446,2]
[340397283,1729183844408,-784.614456,0.0001446,2]
[340397284,1729183844419,-151.0,0.0001446,2]
[340397285,1729183844429,-399.264641,0.0001446,2]
[340397286,1729183844440,-151.0,0.0001446,2]
[340397287,1729183844450,-399.264641,0.0001446,2]
[340397288,1729183844460,-151.0,0.0001446,2]
[340397289,1729183844470,-399.264641,0.0001446,2]
[340397290,1729183844481,-1708.164414,0.0001446,2]
[340397291,1729183844492,-151.0,0.0001446,2]
[340397292,1729183844502,-1708.164414,0.0001446,2]
[340397293,1729183844512,-151.0,0.0001446,2]
[340397294,1729183844522,-151.0,0.0001446,2]
[340397295,1729183844532,-1708.164414,0.0001446,2]
[340397296,1729183844543,-1708.164414,0.0001446,2]
[340397297,1729183844553,-857.821292,0.0001446,2]
[340397298,1729183844563,-857.821292,0.0001446,2]
[340397299,1729183844573,-857.821292,0.0001446,2]
[340397300,1729183844584,-2328.875722,0.0001446,2]
[340397301,1729183844594,-2328.875722,0.0001446,2]
[340397302,1729183844603,-857.821292,0.0001446,2]
[340397303,1729183844613,-857.821292,0.0001446,2]
[340397304,1729183844623,-857.821292,0.0001446,2]
[340397305,1729183844633,-2328.875722,0.0001446,2]
[340397306,1729183844643,-2328.875722,0.0001446,2]
[340397307,1729183844654,-873.291686,0.0001446,2]
[340397308,1729183844665,-873.291686,0.0001446,2]
[340397309,1729183844675,-1431.487494,0.0001446,2]
[340397310,1729183844685,-1431.487494,0.0001446,2]
[340397311,1729183844695,-873.291686,0.0001446,2]
[340397312,1729183844705,-873.291686,0.0001446,2]
[340397313,1729183844715,-1431.487494,0.0001446,2]
[340397314,1729183844725,-1431.487494,0.0001446,2]
[340397315,1729183844735,-1055.925198,0.0001446,2]
[340397316,1729183844745,-1055.925198,0.0001446,2]
[340397317,1729183844755,-1055.925198,0.0001446,2]
[340397318,1729183844765,-1055.925198,0.0001446,2]
[340397319,1729183844775,-261.650755,0.0001446,2]
[340397320,1729183844786,-261.650755,0.0001446,2]
[340397321,1729183844796,-261.650755,0.0001446,2]
[340397322,1729183844806,-151.0,0.0001446,2]
[340397323,1729183844816,-151.0,0.0001446,2]
[340397324,1729183844825,-151.0,0.0001446,2]
[340397325,1729183844835,-261.650755,0.0001446,2]
[340397326,1729183844846,-261.650755,0.0001446,2]